bitfinex/quotes_SOLUSD_20241103
["timestamp","ask_amount","ask_price","bid_price","bid_amount"]
[1730659679825,6.3063,158.57,158.52,41.88151846]
[1730659680029,41.87951846,158.57,158.51,51.34411846]
[1730659680242,41.87951846,158.57,158.51,57.65281846]
[1730659681057,6.3063,158.57,158.52,35.57321846]
[1730659681352,6.3063,158.57,158.53,35.57321846]
[1730659681551,6.3063,158.57,158.52,35.57321846]
[1730659682356,35.57321846,158.61,158.55,35.57321846]
[1730659682535,6.3043,158.62,158.57,35.57321846]
[1730659683741,35.57321846,158.61,158.55,35.57321846]
[1730659683939,35.57321846,158.59,158.53,35.57321846]
[1730659684350,35.57321846,158.6,158.54,35.57321846]
[1730659684976,35.57321846,158.59,158.53,35.57321846]
[1730659685638,6.3059,158.58,158.53,41.88081846]
[1730659686032,6.3059,158.58,158.54,35.57321846]
[1730659686632,6.3055,158.59,158.54,35.57321846]
[1730659687158,35.57321846,158.56,158.5,35.57321846]
[1730659687332,35.57321846,158.54,158.49,38.5137]
[1730659687649,35.57321846,158.58,158.52,35.57321846]
[1730659688026,35.57321846,158.57,158.49,44.8232]
[1730659688353,35.57321846,158.57,158.51,35.57321846]
[1730659688736,41.87991846,158.57,158.51,41.88171846]
[1730659689454,6.3067,158.57,158.52,35.57321846]
[1730659690350,41.87871846,158.59,158.53,35.57321846]
[1730659690553,6.3055,158.59,158.54,35.57321846]
[1730659691057,6.3055,158.59,158.49,58.31341846]
[1730659691058,35.57321846,158.55,158.5,35.57321846]
[1730659691259,35.57321846,158.53,158.48,15.7742]
[1730659691554,35.57321846,158.53,158.48,22.0841]
[1730659691555,21.91098418,158.53,158.48,22.0841]
[1730659691741,21.91098418,158.54,158.48,22.0841]
[1730659691952,21.91098418,158.55,158.49,21.91098418]
[1730659692150,21.91098418,158.56,158.5,21.91098418]
[1730659692849,28.21808418,158.56,158.5,28.21988418]
[1730659693040,21.91098418,158.55,158.5,6.3089]
[1730659693240,21.91098418,158.54,158.48,43.99508418]
[1730659693663,21.91098418,158.51,158.45,43.70978418]
[1730659693836,21.91098418,158.51,158.36,22.0625955]
[1730659693837,90.0,158.36,158.35,0.3076099]
[1730659694037,0.1,158.34,158.27,0.3076099]
[1730659694346,6.44155834,158.33,158.27,0.3076099]
[1730659694552,20.0,158.38,158.27,0.3076099]
[1730659694727,20.0,158.4,158.27,6.6258099]
[1730659694931,21.91098418,158.34,158.27,22.21859408]
[1730659695147,21.91098418,158.31,158.27,0.3076099]
[1730659695847,21.91098418,158.31,158.24,15.7982]
[1730659695848,21.91098418,158.31,158.24,37.70918418]
[1730659696144,21.91098418,158.31,158.27,0.2445048]
[1730659697056,21.91098418,158.31,158.25,21.65548898]
[1730659697235,21.91098418,158.31,158.24,37.70918418]
[1730659697432,35.70324654,158.31,158.24,51.50144654]
[1730659697636,35.70324654,158.34,158.27,35.70324654]
[1730659697948,6.3154,158.35,158.27,35.70324654]
[1730659697949,35.70324654,158.33,158.27,35.70324654]
[1730659698144,35.70324654,158.33,158.26,35.82873654]
[1730659698345,6.3154,158.35,158.29,35.70324654]
[1730659698346,35.70324654,158.35,158.29,35.70324654]
[1730659698554,35.70324654,158.34,158.27,35.82873654]
[1730659698741,35.70324654,158.34,158.28,23.902374]
[1730659699352,35.70324654,158.32,158.26,35.70324654]
[1730659699653,35.70324654,158.29,158.26,23.902374]
[1730659701059,35.70324654,158.28,158.26,23.902374]
[1730659701261,35.70324654,158.29,158.26,23.902374]
[1730659701435,35.70324654,158.29,158.26,30.220974]
[1730659701856,35.70324654,158.3,158.26,46.017674]
[1730659702536,35.70324654,158.29,158.26,46.017674]
[1730659703349,35.70324654,158.3,158.26,46.017674]
[1730659703742,35.70324654,158.29,158.26,46.017674]
[1730659704462,35.70324654,158.3,158.26,46.017674]
[1730659704646,35.70324654,158.28,158.26,46.017674]
[1730659705554,35.70324654,158.27,158.26,15.7967]
[1730659706068,35.70324654,158.28,158.26,15.7967]
[1730659707063,35.70324654,158.28,158.26,22.1154]
[1730659707361,35.70324654,158.29,158.26,22.1154]
[1730659707544,35.70324654,158.33,158.28,22.1126]
[1730659707889,35.70324654,158.29,158.27,0.12549]
[1730659708049,35.70324654,158.28,158.25,22.1163]
[1730659708542,35.70324654,158.29,158.25,22.1163]
[1730659708737,22.0987,158.38,158.25,22.1163]
[1730659708738,35.70324654,158.28,158.25,22.1163]
[1730659708950,35.70324654,158.3,158.25,15.7976]
[1730659710257,35.70324654,158.28,158.22,48.60234458]
[1730659710455,35.70324654,158.26,158.22,28.4694]
[1730659710656,35.70324654,158.31,158.22,28.4694]
[1730659710657,35.70324654,158.27,158.22,28.4694]
[1730659711238,35.70324654,158.26,158.22,15.8006]
[1730659711457,35.70324654,158.26,158.22,22.1209]
[1730659711662,35.70324654,158.31,158.22,22.1209]
[1730659711663,35.70324654,158.27,158.22,22.1209]
[1730659712141,35.70324654,158.25,158.22,22.1209]
[1730659712341,35.70324654,158.25,158.22,15.8006]
[1730659712559,35.70324654,158.26,158.22,15.8006]
[1730659712742,35.70324654,158.26,158.22,22.1209]
[1730659713273,35.70324654,158.3,158.23,59.73111054]
[1730659713573,35.70324654,158.28,158.23,59.73111054]
[1730659713861,35.70324654,158.27,158.23,23.902374]
[1730659714065,35.70324654,158.27,158.22,22.1209]
[1730659714673,35.70324654,158.28,158.22,57.82414654]
[1730659715272,35.70324654,158.29,158.24,35.70324654]
[1730659715742,35.70324654,158.3,158.24,35.70324654]
[1730659716343,35.70324654,158.3,158.25,22.1168]
[1730659718865,35.70324654,158.35,158.29,59.60562054]
[1730659719161,35.70324654,158.36,158.31,23.902374]
[1730659719373,21.95097448,158.37,158.31,45.85334848]
[1730659719861,21.95097448,158.36,158.31,23.902374]
[1730659720647,21.95097448,158.36,158.32,22.1071]
[1730659722074,21.95097448,158.36,158.33,24.027864]
[1730659722249,21.95097448,158.38,158.33,24.027864]
[1730659723162,21.95097448,158.36,158.33,30.218174]
[1730659723362,28.26407448,158.4,158.33,6.3158]
[1730659723363,21.95097448,158.35,158.33,6.3158]
[1730659723666,21.95097448,158.35,158.32,15.7908]
[1730659723852,21.95097448,158.34,158.32,22.1071]
[1730659724355,21.95097448,158.33,158.28,0.12549]
[1730659724560,21.95097448,158.33,158.28,22.23759]
[1730659724858,21.95097448,158.3,158.28,22.1121]
[1730659725059,21.95097448,158.3,158.28,15.7942]
[1730659725256,21.95097448,158.31,158.25,22.1168]
[1730659726266,21.95097448,158.31,158.27,6.3183]
[1730659726664,21.95097448,158.32,158.27,22.114]
[1730659727358,21.95097448,158.31,158.27,22.114]
[1730659728166,21.95097448,158.28,158.25,6.3188]
[1730659728355,21.95097448,158.29,158.25,6.3188]
[1730659728663,21.95097448,158.3,158.25,22.1165]
[1730659728861,21.95097448,158.32,158.26,21.95097448]
[1730659729570,21.95097448,158.34,158.28,45.85334848]
[1730659730459,21.95097448,158.34,158.29,6.3175]
[1730659731059,21.95097448,158.34,158.29,22.1112]
[1730659732571,28.26677448,158.34,158.29,22.1112]
[1730659733373,21.95097448,158.35,158.29,44.06217448]
[1730659733569,15.1795,158.38,158.32,21.95097448]
[1730659733570,21.95097448,158.38,158.32,21.95097448]
[1730659734259,21.95097448,158.37,158.32,23.902374]
[1730659734852,21.95097448,158.38,158.32,45.85334848]
[1730659735076,21.95097448,158.38,158.33,6.3159]
[1730659736474,21.95097448,158.37,158.33,22.1057]
[1730659736851,21.95097448,158.38,158.33,22.1057]
[1730659737054,21.95097448,158.39,158.33,44.05667448]
[1730659738257,16.4003,158.42,158.36,44.05247448]
[1730659738258,21.95097448,158.42,158.36,44.05247448]
[1730659738687,21.95097448,158.45,158.39,22.07646448]
[1730659738864,38.35127448,158.46,158.4,21.95097448]
[1730659739064,21.95097448,158.47,158.41,21.95097448]
[1730659739383,19.22187167,158.49,158.4,21.95097448]
[1730659739384,21.95097448,158.46,158.4,21.95097448]
[1730659740478,21.95097448,158.46,158.41,6.3127]
[1730659740862,0.3080783,158.49,158.44,21.95097448]
[1730659741183,0.3080783,158.49,158.45,21.95097448]
[1730659741583,6.6177783,158.49,158.42,23.902374]
[1730659742485,6.6177783,158.49,158.42,30.214474]
[1730659742778,21.95097448,158.47,158.42,67.94624848]
[1730659743770,21.95097448,158.48,158.42,67.94624848]
[1730659744760,28.56875278,158.49,158.43,28.26257448]
[1730659745008,0.3080783,158.49,158.44,21.95097448]
[1730659745785,0.3080783,158.49,158.43,22.0914]
[1730659745786,0.3080783,158.49,158.46,21.95097448]
[1730659745989,0.3080783,158.49,158.44,45.97883848]
[1730659746286,0.3080783,158.49,158.45,21.95097448]
[1730659746793,0.3080783,158.49,158.46,44.03847448]
[1730659747285,0.3080783,158.49,158.46,22.0875]
[1730659747668,0.3080783,158.49,158.46,44.03847448]
[1730659748085,0.3080783,158.49,158.46,15.7768]
[1730659748379,0.3080783,158.49,158.46,37.72777448]
[1730659748589,0.3080783,158.49,158.43,21.95097448]
[1730659748768,21.95097448,158.45,158.39,21.95097448]
[1730659748971,21.95097448,158.45,158.39,44.04827448]
[1730659749494,13.70749539,158.46,158.39,35.80479539]
[1730659749787,13.70749539,158.47,158.41,13.70749539]
[1730659749965,13.70749539,158.46,158.4,13.70749539]
[1730659750482,13.70749539,158.46,158.41,6.3127]
[1730659750873,13.70749539,158.46,158.41,22.0945]
[1730659751265,21.92874862,158.46,158.41,22.0945]
[1730659752274,0.3080783,158.49,158.41,15.7818]
[1730659752275,21.92874862,158.45,158.41,15.7818]
[1730659752526,21.92874862,158.44,158.39,6.3135]
[1730659753180,21.92874862,158.43,158.37,37.71364862]
[1730659753384,21.92874862,158.39,158.34,38.3718]
[1730659753571,21.92874862,158.39,158.34,22.1041]
[1730659753884,21.92874862,158.37,158.34,15.7887]
[1730659754088,6.1004,158.45,158.32,6.3161]
[1730659754089,21.92874862,158.35,158.32,6.3161]
[1730659754297,21.92874862,158.36,158.3,44.03784862]
[1730659755177,21.92874862,158.34,158.3,15.792]
[1730659755485,21.92874862,158.32,158.27,22.1136]
[1730659757085,21.92874862,158.33,158.27,44.04234862]
[1730659757899,21.92874862,158.35,158.29,21.92874862]
[1730659758391,21.92874862,158.37,158.3,21.92874862]
[1730659758601,21.92874862,158.36,158.3,21.92874862]
[1730659759085,28.12914862,158.4,158.34,21.92874862]
[1730659759086,6.3135,158.4,158.34,21.92874862]
[1730659759297,28.24124862,158.42,158.36,21.92874862]
[1730659760095,21.92874862,158.42,158.37,22.1001]
[1730659760495,28.24114862,158.42,158.37,22.1001]
[1730659760674,21.92874862,158.43,158.37,44.02884862]
[1730659760874,28.15525722,158.44,158.38,21.92874862]
[1730659761081,22.05485722,158.44,158.38,21.92874862]
[1730659761481,28.36645722,158.44,158.38,21.92874862]
[1730659761686,21.92874862,158.43,158.37,44.02884862]
[1730659763682,21.92874862,158.43,158.37,22.1001]
[1730659763683,21.92874862,158.42,158.37,22.1001]
[1730659763886,21.92874862,158.42,158.37,15.7858]
[1730659764193,21.92874862,158.4,158.34,15.7885]
[1730659764398,21.92874862,158.4,158.34,37.71724862]
[1730659764582,21.92874862,158.41,158.34,37.71724862]
[1730659764779,21.92874862,158.41,158.35,21.92874862]
[1730659765009,22.05485722,158.44,158.37,21.92874862]
[1730659765178,28.36645722,158.44,158.38,6.3139]
[1730659765580,21.92874862,158.43,158.38,6.3139]
[1730659765785,21.92874862,158.42,158.38,6.3139]
[1730659766194,21.92874862,158.43,158.38,15.7848]
[1730659767390,28.24064862,158.43,158.38,15.7848]
[1730659767796,21.92874862,158.41,158.38,15.7848]
[1730659768186,21.92874862,158.42,158.38,15.7848]
[1730659771601,21.92874862,158.43,158.38,15.7848]
[1730659771791,0.1261086,158.44,158.38,15.7848]
[1730659771792,0.1261086,158.44,158.39,21.92874862]
[1730659772298,22.05485722,158.44,158.38,37.71354862]
[1730659773086,22.05485722,158.44,158.4,23.902374]
[1730659773087,0.1261086,158.44,158.4,23.902374]
[1730659773289,0.1261086,158.44,158.41,13.70478186]
[1730659773494,0.1261086,158.44,158.42,13.70478186]
[1730659773894,0.1261086,158.44,158.43,13.70478186]
[1730659774100,0.1261086,158.44,158.43,37.60715586]
[1730659774308,0.1261086,158.44,158.4,13.70478186]
[1730659774482,0.1261086,158.44,158.41,13.83027186]
[1730659775202,0.1261086,158.44,158.36,6.3147]
[1730659775203,13.70478186,158.42,158.36,6.3147]
[1730659775402,6.4376086,158.44,158.36,6.3147]
[1730659775592,13.70478186,158.39,158.35,6.315]
[1730659776100,13.70478186,158.4,158.35,22.1028]
[1730659776418,13.70478186,158.38,158.33,6.3157]
[1730659776700,13.70478186,158.39,158.33,20.02048186]
[1730659777609,13.70478186,158.38,158.33,22.1055]
[1730659778600,13.70478186,158.38,158.33,15.7898]
[1730659778799,13.70478186,158.39,158.33,29.49458186]
[1730659779002,13.70478186,158.41,158.35,13.70478186]
[1730659780704,13.70478186,158.41,158.36,6.3147]
[1730659781508,13.70478186,158.42,158.36,20.01948186]
[1730659781699,13.70478186,158.43,158.37,13.70478186]
[1730659782004,13.70478186,158.42,158.36,67.37988186]
[1730659782209,13.70478186,158.41,158.36,53.6751]
[1730659782707,13.70478186,158.42,158.36,67.37988186]
[1730659783708,13.70478186,158.41,158.36,47.3604]
[1730659784913,13.70478186,158.39,158.33,13.70478186]
[1730659785113,13.70478186,158.38,158.33,6.3159]
[1730659785723,13.70478186,158.37,158.32,6.3162]
[1730659786013,13.70478186,158.36,158.32,6.3162]
[1730659786394,13.70478186,158.34,158.29,6.3173]
[1730659786718,13.70478186,158.35,158.29,20.02208186]
[1730659787214,13.70478186,158.35,158.29,29.49848186]
[1730659787591,20.01948186,158.36,158.3,13.70478186]
[1730659788310,20.01948186,158.36,158.31,6.3167]
[1730659789491,20.01948186,158.36,158.31,22.1085]
[1730659789695,13.70478186,158.35,158.31,22.1085]
[1730659790099,6.314,158.38,158.31,35.81328186]
[1730659790407,13.70478186,158.39,158.32,13.70478186]
[1730659791000,27.40956372,158.33,158.28,6.54569819]
[1730659791199,13.70478186,158.29,158.24,0.1829121]
[1730659791409,13.70478186,158.25,158.24,0.1829121]
[1730659791894,35.46688186,158.25,158.24,0.1829121]
[1730659793299,50.07251457,158.25,158.24,0.1829121]
[1730659793500,37.70821457,158.25,158.24,0.1829121]
[1730659794213,21.99131457,158.25,158.24,0.1829121]
[1730659794395,6.3189,158.26,158.24,0.1829121]
[1730659794396,23.08354196,158.26,158.24,0.1829121]
[1730659794712,21.99131457,158.25,158.24,0.1829121]
[1730659796020,28.31041457,158.25,158.24,0.1829121]
[1730659796312,21.99131457,158.25,158.24,0.1829121]
[1730659797414,7.41092739,158.26,158.24,0.1829121]
[1730659797415,1.09222739,158.26,158.24,22.3011121]
[1730659797627,21.99131457,158.3,158.24,44.29242667]
[1730659797912,21.99131457,158.27,158.24,15.9816121]
[1730659798099,21.99131457,158.27,158.24,0.1829121]
[1730659798307,21.99131457,158.26,158.24,0.1829121]
[1730659800303,21.99131457,158.27,158.24,0.1829121]
[1730659800495,21.99131457,158.27,158.24,6.5023121]
[1730659802596,21.99131457,158.28,158.24,6.5023121]
[1730659802999,21.99131457,158.29,158.24,22.3010121]
[1730659803493,21.99131457,158.28,158.24,22.3010121]
[1730659804122,21.99131457,158.31,158.25,21.99131457]
[1730659805511,21.99131457,158.31,158.26,22.1154]
[1730659805828,21.99131457,158.27,158.24,0.1829121]
[1730659806021,21.99131457,158.25,158.24,0.1829121]
[1730659806407,38.04091457,158.25,158.24,0.1829121]
[1730659807721,44.36001457,158.25,158.24,0.1829121]
[1730659812512,21.99131457,158.25,158.24,0.1829121]
[1730659812708,21.99131457,158.26,158.24,0.1829121]
[1730659812921,21.99131457,158.25,158.24,0.1829121]
[1730659813423,13.74564746,158.25,158.24,0.1829121]
[1730659814633,20.06474746,158.25,158.24,0.1829121]
[1730659815130,13.74564746,158.25,158.24,0.1829121]
[1730659815430,13.74564746,158.26,158.24,0.1829121]
[1730659815806,13.74564746,158.25,158.24,0.1829121]
[1730659816535,13.74564746,158.27,158.24,6.5024121]
[1730659817427,13.74564746,158.28,158.24,22.3011121]
[1730659819503,13.74564746,158.27,158.24,22.3011121]
[1730659821353,21.991314,158.4,158.27,20.0]
[1730659821512,0.1261086,158.44,158.43,0.1]
[1730659821713,0.3090207,158.52,158.5,0.1]
[1730659822028,0.3090207,158.52,158.51,0.57647]
[1730659822223,0.3090207,158.52,158.51,0.37647]
[1730659822738,0.3090207,158.52,158.49,0.25098]
[1730659822924,0.3090207,158.52,158.48,0.25098]
[1730659823119,0.3090207,158.52,158.51,13.87113746]
[1730659823311,0.3090207,158.52,158.51,22.01563688]
[1730659823629,0.3090207,158.52,158.51,28.32433688]
[1730659823930,0.3090207,158.52,158.51,51.97573088]
[1730659824104,0.3090207,158.52,158.5,15.7726]
[1730659824105,0.3090207,158.52,158.5,21.89014688]
[1730659824524,0.3090207,158.52,158.47,6.3101]
[1730659824525,0.3090207,158.52,158.51,45.79252088]
[1730659825318,0.75,158.57,158.52,23.902374]
[1730659825526,0.75,158.57,158.56,21.89014688]
[1730659831124,0.75,158.57,158.56,45.91801088]
[1730659831326,0.3090207,158.6,158.59,21.89014688]
[1730659832424,0.3090207,158.6,158.59,28.19564688]
[1730659833330,0.3090207,158.6,158.59,52.09802088]
[1730659833737,0.3090207,158.68,158.62,23.902374]
[1730659833936,0.3090207,158.68,158.67,21.89014688]
[1730659834830,0.3090207,158.68,158.67,50.08259376]
[1730659835048,0.3090207,158.68,158.67,28.19244688]
[1730659835953,38.46886758,158.76,158.67,28.19244688]
[1730659835954,0.3090207,158.76,158.7,0.12549]
[1730659836114,0.3090207,158.76,158.75,21.89014688]
[1730659837015,0.3090207,158.76,158.75,45.66703088]
[1730659837215,0.3090207,158.76,158.75,28.18934688]
[1730659837536,0.3090207,158.76,158.75,21.89014688]
[1730659837537,0.0412032,158.76,158.75,21.89014688]
[1730659837736,21.93135008,158.76,158.7,15.7529]
[1730659837914,0.0412032,158.76,158.7,15.7529]
[1730659838631,0.0412032,158.76,158.66,0.25098]
[1730659838942,21.93135008,158.76,158.7,21.89014688]
[1730659839126,0.0412032,158.76,158.72,21.89014688]
[1730659839538,0.0412032,158.76,158.71,21.89014688]
[1730659839724,21.93135008,158.76,158.7,21.89014688]
[1730659839930,0.0412032,158.76,158.71,21.89014688]
[1730659840717,21.89014688,158.75,158.69,21.89014688]
[1730659841044,21.89014688,158.72,158.66,21.89014688]
[1730659841215,21.89014688,158.73,158.67,21.89014688]
[1730659841617,21.89014688,158.73,158.65,22.0601]
[1730659841618,21.89014688,158.74,158.68,21.89014688]
[1730659842318,6.3,158.73,158.68,21.89014688]
[1730659842520,6.3,158.73,158.66,6.3027]
[1730659842521,28.19014688,158.73,158.67,21.89014688]
[1730659842726,21.89014688,158.72,158.67,21.89014688]
[1730659843339,6.3,158.73,158.69,21.89014688]
[1730659843540,21.89014688,158.72,158.66,21.89014688]
[1730659844044,6.3,158.73,158.67,21.89014688]
[1730659844045,28.19014688,158.73,158.67,21.89014688]
[1730659844227,6.3,158.73,158.68,21.89014688]
[1730659844647,28.19014688,158.73,158.67,21.89014688]
[1730659844945,6.3,158.73,158.69,21.89014688]
[1730659846051,21.89014688,158.7,158.63,21.89014688]
[1730659846243,21.89014688,158.69,158.63,21.89014688]
[1730659846425,111.93135008,158.76,158.68,21.89014688]
[1730659846426,28.23015008,158.76,158.68,21.89014688]
[1730659846624,28.23015008,158.76,158.71,21.89014688]
[1730659847852,6.3400032,158.76,158.71,21.89014688]
[1730659848144,0.0412032,158.76,158.72,21.89014688]
[1730659848353,0.0412032,158.76,158.74,21.89014688]
[1730659848655,0.0412032,158.76,158.73,21.89014688]
[1730659848855,0.0412032,158.76,158.72,21.89014688]
[1730659849027,0.0412032,158.76,158.71,45.66703088]
[1730659849228,28.23015008,158.76,158.71,21.89014688]
[1730659849427,6.3400032,158.76,158.71,21.89014688]
[1730659849741,6.3400032,158.76,158.72,21.89014688]
[1730659850854,6.3400032,158.76,158.71,21.89014688]
[1730659851248,6.3400032,158.76,158.72,21.89014688]
[1730659851845,0.0412032,158.76,158.72,21.89014688]
[1730659853657,0.0412032,158.76,158.71,21.89014688]
[1730659853832,21.93135008,158.76,158.7,37.64304688]
[1730659854158,0.0412032,158.76,158.71,21.89014688]
[1730659854528,0.0412032,158.76,158.7,15.7529]
[1730659854529,0.0412032,158.76,158.72,21.89014688]
[1730659854731,0.0412032,158.76,158.73,21.89014688]
[1730659855038,0.0412032,158.76,158.73,28.19014688]
[1730659855648,0.0412032,158.76,158.74,21.89014688]
[1730659856552,0.0412032,158.76,158.75,21.89014688]
[1730659857254,0.0412032,158.76,158.75,28.18934688]
[1730659857933,0.0412032,158.76,158.75,51.96623088]
[1730659859033,0.0412032,158.76,158.75,28.18934688]
[1730659859433,0.0412032,158.76,158.75,51.96623088]
[1730659860155,0.0412032,158.76,158.75,52.21721088]
[1730659861138,0.0412032,158.76,158.75,52.34270088]
[1730659861336,0.0412032,158.76,158.75,74.33284776]
[1730659862056,0.0412032,158.76,158.75,74.43284776]
[1730659862245,0.4328523,158.83,158.75,74.43284776]
[1730659862246,0.4328523,158.83,158.82,21.89014688]
[1730659862435,0.4328523,158.83,158.82,45.66703088]
[1730659862636,0.4328523,158.83,158.82,45.91801088]
[1730659863032,0.4328523,158.83,158.82,45.79252088]
[1730659863361,22.32299918,158.83,158.78,43.93314688]
[1730659863656,0.4328523,158.83,158.78,43.93314688]
[1730659864258,0.4328523,158.83,158.79,28.18734688]
[1730659864649,0.4328523,158.83,158.8,45.66703088]
[1730659865091,0.4328523,158.83,158.82,45.66703088]
[1730659865249,0.4328523,158.83,158.82,45.79252088]
[1730659865642,0.4328523,158.83,158.82,45.91801088]
[1730659866265,0.4328523,158.83,158.82,52.21441088]
[1730659866847,0.4328523,158.83,158.82,52.33990088]
[1730659869165,0.4328523,158.83,158.82,52.43990088]
[1730659869462,0.4328523,158.83,158.82,53.69848011]
[1730659869663,21.89014688,158.9,158.85,21.89014688]
[1730659869844,21.89014688,158.87,158.82,43.92754688]
[1730659870368,21.89014688,158.89,158.83,21.89014688]
[1730659870668,6.2928,158.91,158.83,21.89014688]
[1730659870843,21.89014688,158.84,158.78,21.89014688]
[1730659871051,21.89014688,158.83,158.77,21.89014688]
[1730659871359,21.89014688,158.84,158.78,21.89014688]
[1730659872064,28.18594688,158.84,158.78,28.18774688]
[1730659872662,6.2958,158.84,158.79,21.89014688]
[1730659873666,6.2953,158.85,158.8,28.18734688]
[1730659873866,22.2367,158.86,158.81,21.89014688]
[1730659874170,28.18414688,158.88,158.83,21.89014688]
[1730659874343,28.18414688,158.88,158.82,21.89014688]
[1730659874548,21.89014688,158.89,158.83,45.66703088]
[1730659874869,21.89014688,158.85,158.8,43.93034688]
[1730659875368,21.89014688,158.86,158.8,43.93034688]
[1730659875556,21.89014688,158.86,158.81,21.89014688]
[1730659875763,21.89014688,158.87,158.81,21.89014688]
[1730659876573,31.6749,158.9,158.82,21.89014688]
[1730659876574,6.2948,158.86,158.82,21.89014688]
[1730659877178,28.18494688,158.86,158.82,23.776884]
[1730659877352,28.18494688,158.86,158.75,31.496]
[1730659877353,21.89014688,158.84,158.79,23.776884]
[1730659877674,21.89014688,158.8,158.74,28.18934688]
[1730659877857,21.89014688,158.85,158.79,21.89014688]
[1730659878044,6.2948,158.86,158.77,0.12549]
[1730659878359,28.18494688,158.86,158.75,0.12549]
[1730659878569,28.18494688,158.86,158.8,21.89014688]
[1730659878765,28.18494688,158.86,158.81,23.776884]
[1730659878990,21.89014688,158.85,158.8,23.776884]
[1730659879272,6.2948,158.86,158.81,21.89014688]
[1730659879448,6.2948,158.86,158.81,28.18674688]
[1730659879650,12.4947,158.87,158.82,45.66703088]
[1730659879865,34.38484688,158.87,158.82,23.776884]
[1730659880092,21.89014688,158.86,158.82,23.776884]
[1730659880274,34.38484688,158.87,158.82,23.776884]
[1730659880873,21.89014688,158.86,158.82,23.776884]
[1730659881174,28.18504688,158.86,158.82,23.776884]
[1730659881750,6.2949,158.86,158.82,23.776884]
[1730659881950,21.89014688,158.84,158.79,21.89014688]
[1730659882251,21.89014688,158.83,158.8,23.776884]
[1730659882775,21.89014688,158.83,158.76,0.25098]
[1730659882776,21.89014688,158.81,158.74,37.63874688]
[1730659882981,21.99014688,158.85,158.74,37.63874688]
[1730659882982,21.89014688,158.8,158.74,43.93824688]
[1730659883156,21.89014688,158.81,158.75,21.89014688]
[1730659883973,6.2968,158.81,158.76,28.18864688]
[1730659885273,6.2968,158.81,158.77,21.89014688]
[1730659885482,6.2968,158.81,158.76,21.89014688]
[1730659886977,21.89014688,158.85,158.79,21.89014688]
[1730659887182,6.2957,158.84,158.8,21.89014688]
[1730659887358,6.2949,158.86,158.81,21.89014688]
[1730659888270,31.7756,158.9,158.82,45.66703088]
[1730659888271,21.89014688,158.88,158.82,45.66703088]
[1730659888468,6.2944,158.87,158.82,45.66703088]
[1730659888782,28.18454688,158.87,158.82,23.776884]
[1730659889289,6.2944,158.87,158.82,51.96343088]
[1730659893079,21.89014688,158.87,158.82,30.073284]
[1730659893267,21.89014688,158.87,158.82,23.776884]
[1730659893472,21.89014688,158.86,158.82,23.776884]
[1730659893973,21.89014688,158.88,158.82,45.66703088]
[1730659894169,21.89014688,158.88,158.82,51.96313088]
[1730659894485,6.2936,158.89,158.84,21.89014688]
[1730659894666,6.2936,158.89,158.85,23.776884]
[1730659895075,21.89014688,158.88,158.83,23.902374]
[1730659895279,21.89014688,158.86,158.83,23.776884]
[1730659895670,21.89014688,158.87,158.83,23.776884]
[1730659896082,21.89014688,158.88,158.83,23.776884]
[1730659896785,28.18374688,158.89,158.84,0.12549]
[1730659896980,6.2936,158.89,158.85,45.66703088]
[1730659897281,6.2932,158.9,158.85,45.66703088]
[1730659898182,6.5633459,158.9,158.85,45.66703088]
[1730659898783,0.2701459,158.9,158.87,23.776884]
[1730659902682,0.2701459,158.9,158.87,0.12549]
[1730659902886,0.2701459,158.9,158.88,23.776884]
[1730659903469,0.2701459,158.9,158.88,37.40296994]
[1730659904898,0.2701459,158.9,158.88,23.776884]
[1730659905380,0.2701459,158.9,158.88,43.69686994]
[1730659905791,0.2701459,158.9,158.89,13.62608594]
[1730659906386,0.2701459,158.9,158.89,37.40296994]
[1730659906889,0.2701459,158.9,158.89,43.94754994]
[1730659907692,0.2701459,158.9,158.89,30.321464]
[1730659909071,0.2701459,158.9,158.89,43.94754994]
[1730659909267,0.2701459,158.9,158.89,30.321464]
[1730659910103,0.2701459,158.9,158.89,43.94754994]
[1730659912611,0.2701459,158.9,158.89,44.07303994]
[1730659913592,0.2701459,158.9,158.89,60.27273994]
[1730659914810,0.3148901,158.95,158.93,0.12549]
[1730659914977,0.3148901,158.95,158.94,13.75157594]
[1730659915185,0.3148901,158.95,158.94,14.00255594]
[1730659915986,0.3148901,158.95,158.94,20.29415594]
[1730659916197,6.6454,159.02,158.96,0.12549]
[1730659916198,6.4602901,159.02,158.96,0.12549]
[1730659916399,0.3148901,159.03,159.0,0.12549]
[1730659916582,0.3148901,159.03,159.02,13.87706594]
[1730659916778,0.3148901,159.03,159.02,37.65394994]
[1730659917578,0.3148901,159.03,159.02,44.06793994]
[1730659920809,0.3148901,159.03,159.02,43.94244994]
[1730659920988,0.3148901,159.03,158.98,19.91598594]